[Event "Candidates Tournament"]
[Site "Khanty-Mansiysk"]
[Date "2014.03.22"]
[Round "8"]
[White "Kramnik, Vladimir"]
[Black "Andreikin, Dmitry"]
[Result "1/2-1/2"]
[ECO "D15"]
[WhiteElo "2787"]
[BlackElo "2709"]
[Annotator "ChessBase Website"]
[PlyCount "64"]
[EventDate "2014.03.13"]
[EventType "tourn"]
[EventRounds "14"]
[EventCountry "RUS"]
[EventCategory "21"]
[SourceTitle "CBM 160"]
[Source "ChessBase"]
[SourceDate "2014.05.15"]
[SourceVersion "1"]
[SourceVersionDate "2014.05.15"]
[SourceQuality "1"]
[TimeControl "40/7200:20/3600:900+30"]
[WhiteClock "0:59:26"]
[BlackClock "0:56:56"]

1. d4 {[%emt 0:00:03]} d5 {[%emt 0:00:09]} 2. c4 {[%emt 0:00:04]} c6 {[%emt 0:
00:03]} 3. Nf3 {[%emt 0:00:12]} Nf6 {[%emt 0:00:08]} 4. Nc3 {[%emt 0:00:05]} a6
{[%emt 0:00:03]} 5. g3 {[%emt 0:00:17]} b5 {[%emt 0:22:03]} 6. b3 {[%emt 0:04:
50]} Bf5 {[%emt 0:05:56] Andreikin's treatment of the opening was ultra-solid.
His a6 Slav locked up the position quickly, but it made him very passive.
White's control of the c-file and his two bishops was simply not enough for
him to break through as Black lacked weaknesses while White had to contend
with his weak f3 and d4 pawns. Eventually Kramnik sacrificed one of these for
some activity, but it was only enough for a draw.} 7. Bg2 {[%emt 0:00:21]} Ne4
{[%emt 0:01:39]} 8. Nxe4 $146 {[%emt 0:03:21]} (8. Bd2 Nxc3 9. Bxc3 Be4 10. Qd2
e6 11. Ba5 Qd6 12. O-O Nd7 13. cxd5 Qxd5 14. Nh4 Bxg2 15. Nxg2 c5 16. Rad1 cxd4
17. Nf4 Qe4 18. Qxd4 Qxd4 19. Rxd4 Bc5 20. Rd2 Nf6 21. Nd3 Bd6 22. Rc1 O-O 23.
Rc6 Be7 24. Rdc2 h6 25. f3 Rfb8 26. e4 Bd8 27. Bd2 Bb6+ 28. Kf1 Kh7 29. Ke2 Kg8
30. g4 Nd7 31. h4 Bd8 32. Bf4 e5 33. Bxe5 Rb7 34. Rc8 Rxc8 35. Rxc8 {1-0 (35)
Sokolov,I (2657)-Simonian,H (2475) Cento 2011}) 8... Bxe4 {[%emt 0:00:31]} 9.
O-O {[%emt 0:00:25]} Nd7 {[%emt 0:03:15]} 10. Ba3 {[%emt 0:14:45]} g6 {[%emt 0:
08:08]} 11. cxd5 {[%emt 0:10:54]} cxd5 {[%emt 0:01:12]} 12. Qd2 {[%emt 0:05:30]
} Bg7 {[%emt 0:11:18]} 13. Rac1 {[%emt 0:01:15]} O-O {[%emt 0:00:16]} 14. Bh3 {
[%emt 0:01:12]} Bxf3 {[%emt 0:07:34]} 15. exf3 {[%emt 0:09:29]} Re8 {[%emt 0:
00:07]} 16. Rc6 {[%emt 0:06:05]} e6 {[%emt 0:00:12]} 17. Rfc1 {[%emt 0:01:43]}
Qf6 {[%emt 0:04:07]} 18. Rc7 {[%emt 0:02:55]} Nf8 {[%emt 0:03:34]} 19. Bc5 {
[%emt 0:05:38]} Qxf3 {[%emt 0:00:18]} 20. Rc3 {[%emt 0:03:21]} Qh5 {[%emt 0:07:
15]} 21. g4 {[%emt 0:03:57]} Qh4 {[%emt 0:05:31]} 22. Qf4 {[%emt 0:07:50]} f6 {
[%emt 0:05:22]} 23. Be7 {[%emt 0:04:58]} Qg5 {[%emt 0:07:01]} 24. Qg3 {[%emt 0:
06:05]} Qd2 {[%emt 0:00:27]} 25. g5 {[%emt 0:05:13]} Qxg5 {[%emt 0:04:19]} 26.
Qxg5 {[%emt 0:01:11]} fxg5 {[%emt 0:00:06]} 27. Bxg5 {[%emt 0:03:41]} Bxd4 {
[%emt 0:00:33]} 28. R3c6 {[%emt 0:00:50]} a5 {[%emt 0:04:14]} 29. Bh6 {[%emt 0:
02:08]} b4 {[%emt 0:01:36]} 30. Kg2 {[%emt 0:00:42]} a4 {[%emt 0:03:32]} 31.
bxa4 {[%emt 0:01:03]} Rxa4 {[%emt 0:01:19]} 32. Bxf8 {[%emt 0:03:55]} Rxf8 {
[%emt 0:02:33]} 1/2-1/2

[Event "Candidates Tournament"]
[Site "Khanty-Mansiysk"]
[Date "2014.03.22"]
[Round "8"]
[White "Topalov, Veselin"]
[Black "Mamedyarov, Shakhriyar"]
[Result "1/2-1/2"]
[ECO "B90"]
[WhiteElo "2785"]
[BlackElo "2757"]
[Annotator "ChessBase Website"]
[PlyCount "64"]
[EventDate "2014.03.13"]
[EventType "tourn"]
[EventRounds "14"]
[EventCountry "RUS"]
[EventCategory "21"]
[SourceTitle "CBM 160"]
[Source "ChessBase"]
[SourceDate "2014.05.15"]
[SourceVersion "1"]
[SourceVersionDate "2014.05.15"]
[SourceQuality "1"]
[TimeControl "40/7200:20/3600:900+30"]
[WhiteClock "0:59:26"]
[BlackClock "0:56:56"]

1. e4 {[%emt 0:00:04]} c5 {[%emt 0:00:05]} 2. Nf3 {[%emt 0:00:04]} d6 {[%emt 0:
00:04]} 3. d4 {[%emt 0:00:06]} cxd4 {[%emt 0:00:04]} 4. Nxd4 {[%emt 0:00:05]}
Nf6 {[%emt 0:00:03]} 5. Nc3 {[%emt 0:00:09]} a6 {[%emt 0:00:05]} 6. h3 {
[%emt 0:00:04]} g6 {[%emt 0:00:17]} 7. g4 {[%emt 0:02:22]} Bg7 {[%emt 0:00:08]}
8. Bg2 {[%emt 0:00:10]} O-O {[%emt 0:00:23]} 9. Be3 {[%emt 0:00:24]} Nc6 {
[%emt 0:00:30]} 10. Qd2 {[%emt 0:03:28]} Bd7 {[%emt 0:02:01]} (10... Nxd4 11.
Bxd4 b5 12. Bxf6 exf6 13. O-O-O Be6 14. f4 Qa5 15. Kb1 f5 16. Nd5 Qxd2 17. Rxd2
fxg4 18. hxg4 Bxg4 19. Ne3 Bd7 20. Rxd6 Ra7 21. e5 Be6 22. Bd5 Re8 23. c4 Bf8
24. c5 h5 25. c6 Rc7 26. Bf3 Kg7 27. Rc1 h4 28. Bg4 Bxg4 29. Nxg4 Rec8 30. Rf6
Be7 31. a3 h3 32. Rc2 Rd8 33. Ka2 Rd3 34. f5 Rg3 35. Rd6 gxf5 36. Nf6 Bxf6 37.
Rxf6 Rg6 38. Rxf5 Rgxc6 39. Rg5+ Kf8 40. Rxc6 {Volokitin,A (2674)-Kotanjian,T 
(2531) Yerevan 2014 0-1}) 11. O-O-O {[%emt 0:09:30]} Rc8 {[%emt 0:15:24]} 12.
f4 {[%emt 0:16:13]} Na5 {[%emt 0:06:16]} 13. b3 {[%emt 0:03:05]} Qc7 {[%emt 0:
00:49]} 14. Nde2 {[%emt 0:04:32]} b5 {[%emt 0:06:50]} 15. Nd5 $146 {[%emt 0:10:
53]} (15. Kb1 Be6 16. Nd5 Bxd5 17. exd5 Nb7 18. Bd4 Nc5 19. Ng3 e5 20. fxe5
dxe5 21. Bb2 Qd6 22. g5 Nfd7 23. h4 Nb6 24. Ne4 Nxe4 25. Bxe4 Nd7 26. h5 Nc5
27. Bf3 Rc7 28. Qh2 Rfc8 29. hxg6 hxg6 30. Bg4 Rb8 31. Rde1 Re7 32. Re3 Ree8
33. Rh3 Kf8 34. Rh7 {1-0 (34) Admiraal,M (2221)-Bosboom,M (2455) Haarlem 2010})
15... Nxd5 {[%emt 0:00:32]} 16. exd5 {[%emt 0:00:05]} Rfe8 {[%emt 0:09:44]} 17.
Rhf1 {[%emt 0:08:20]} e6 {[%emt 0:08:52]} 18. Rf2 {[%emt 0:05:19] An
interesting but short game. A double-edged Najdorf saw the Azeri player
sacrifice a piece for the initiative. Topalov saw nothing better than to
return it to force a queen exchange, but he did gain the slightest bit of
pressure against Black's pawns in the resulting endgame. However Black was
never in any real problems and the game resulted in a draw.} Nc4 {[%emt 0:13:
00][%csl Gc4]} 19. bxc4 {[%emt 0:00:30]} bxc4 {[%emt 0:00:04]} 20. Bd4 {
[%emt 0:16:24]} c3 {[%emt 0:00:26]} 21. Qxc3 {[%emt 0:00:58]} Qxc3 {[%emt 0:02:
09]} 22. Nxc3 {[%emt 0:00:05]} Bxd4 {[%emt 0:03:55]} 23. Rxd4 {[%emt 0:00:05]}
Rxc3 {[%emt 0:00:03]} 24. dxe6 {[%emt 0:01:53]} Rxe6 {[%emt 0:01:06]} 25. Rfd2
{[%emt 0:02:59]} Rg3 {[%emt 0:02:21]} 26. Rxd6 {[%emt 0:07:23]} Rxd6 {[%emt 0:
00:16]} 27. Rxd6 {[%emt 0:00:07]} Bxg4 {[%emt 0:00:14]} 28. hxg4 {[%emt 0:00:
12]} Rxg2 {[%emt 0:00:09]} 29. g5 {[%emt 0:00:16]} Rf2 {[%emt 0:00:59]} 30. Rd4
{[%emt 0:03:21]} f6 {[%emt 0:02:43]} 31. a4 {[%emt 0:04:54]} fxg5 {[%emt 0:00:
57]} 32. fxg5 {[%emt 0:00:03]} Rf5 {[%emt 0:00:13]} 1/2-1/2

[Event "Candidates Tournament"]
[Site "Khanty-Mansiysk"]
[Date "2014.03.23"]
[Round "9"]
[White "Karjakin, Sergey"]
[Black "Kramnik, Vladimir"]
[Result "1-0"]
[ECO "D11"]
[WhiteElo "2766"]
[BlackElo "2787"]
[Annotator "ChessBase Website"]
[PlyCount "127"]
[EventDate "2014.03.13"]
[EventType "tourn"]
[EventRounds "14"]
[EventCountry "RUS"]
[EventCategory "21"]
[SourceTitle "CBM 160"]
[Source "ChessBase"]
[SourceDate "2014.05.15"]
[SourceVersion "1"]
[SourceVersionDate "2014.05.15"]
[SourceQuality "1"]
[TimeControl "40/7200:20/3600:900+30"]
[WhiteClock "0:59:26"]
[BlackClock "0:56:56"]

1. d4 {[%emt 0:00:03]} Nf6 {[%emt 0:00:19]} 2. Nf3 {[%emt 0:00:07]} d5 {
[%emt 0:00:38]} 3. Bf4 {[%emt 0:00:10]} c6 {[%emt 0:02:18]} 4. e3 {[%emt 0:00:
21]} Bg4 {[%emt 0:11:09]} 5. c4 {[%emt 0:03:18]} Nbd7 {[%emt 0:04:08]} 6. Nc3 {
[%emt 0:05:24]} e6 {[%emt 0:02:05]} 7. Qb3 {[%emt 0:10:32] Karjakin played a
sideline against Kramnik, one that is seen very rarely at the top level. This
paid off very handsomely as Kramnik inexplicably blundered as soon as move
seven. 7...dxc4?? simply left him down a pawn and his position did not have
even the slightest bit of compensation. It is strange to think even what he
missed, as most of the lines were rather obvious.} dxc4 $2 $146 {[%emt 0:14:33]
} (7... Bxf3 8. gxf3 Qb6 9. c5 Qxb3 10. axb3 a6 11. b4 Rc8 12. Bg3 g6 13. Na2
Nh5 14. Nc1 Nxg3 15. hxg3 e5 16. Nb3 Bg7 17. Kd2 h5 18. Bd3 f5 19. f4 exd4 20.
Nxd4 Kf7 21. f3 Rce8 22. Rhg1 Rxe3 23. Kxe3 Re8+ 24. Kd2 Bxd4 25. Rge1 Rxe1 26.
Rxe1 Bf2 27. Ra1 Bxg3 28. Ke3 h4 29. b5 axb5 30. b4 h3 31. Bf1 h2 32. Bg2 Ke7
33. Ra7 Be1 34. Rxb7 Bxb4 35. Kf2 Bxc5+ 36. Kg3 Bg1 37. Kh4 {Eljanov,P (2716)
-Najer,E (2663) Netanya 2009 0-1}) 8. Qxb7 {[%emt 0:09:04]} Bxf3 {[%emt 0:04:
05]} 9. gxf3 {[%emt 0:00:07]} Nd5 {[%emt 0:01:29]} 10. Bg3 {[%emt 0:03:52]}
N5b6 {[%emt 0:20:32]} 11. Qxc6 {[%emt 0:01:52]} Bb4 {[%emt 0:03:04]} 12. Qb5 {
[%emt 0:06:53]} Qe7 {[%emt 0:02:19]} 13. a3 {[%emt 0:01:21]} Bxc3+ {[%emt 0:00:
48]} 14. bxc3 {[%emt 0:00:02]} O-O {[%emt 0:00:34]} 15. Bxc4 {[%emt 0:14:17]}
Nxc4 {[%emt 0:03:13]} 16. Qxc4 {[%emt 0:00:07]} Rac8 {[%emt 0:01:37]} 17. Qd3 {
[%emt 0:11:17]} Nb6 {[%emt 0:00:45]} 18. O-O {[%emt 0:00:52]} Rc4 {[%emt 0:01:
33]} 19. Rfb1 {[%emt 0:05:34]} Rfc8 {[%emt 0:00:58]} 20. Rb3 {[%emt 0:00:11]}
h5 {[%emt 0:03:57]} 21. e4 {[%emt 0:03:57]} Qg5 {[%emt 0:00:50]} 22. h4 {
[%emt 0:03:08]} Qa5 {[%emt 0:07:38]} 23. Rc1 {[%emt 0:02:27]} Qa4 {[%emt 0:01:
02]} 24. Qb1 {[%emt 0:01:43]} Nd7 {[%emt 0:04:53]} 25. Kg2 {[%emt 0:01:14]} Nf8
{[%emt 0:01:27]} 26. Qb2 {[%emt 0:03:21]} Qe8 {[%emt 0:03:25]} 27. Rb7 {
[%emt 0:03:43]} a6 {[%emt 0:03:19]} 28. Qb6 {[%emt 0:02:25]} Ng6 {[%emt 0:02:
29]} 29. Qxa6 {[%emt 0:05:16]} Qd8 {[%emt 0:00:59]} 30. Qb5 {[%emt 0:01:55]} e5
{[%emt 0:01:13]} 31. Rh1 {[%emt 0:00:49]} Rxc3 {[%emt 0:01:38]} 32. dxe5 {
[%emt 0:00:09]} Nf8 {[%emt 0:00:18]} 33. Qd5 {[%emt 0:02:49]} Qe8 {[%emt 0:00:
05]} 34. Ra1 {[%emt 0:02:10]} Ne6 {[%emt 0:02:09]} 35. Qd7 {[%emt 0:00:41]} Qf8
{[%emt 0:00:24]} 36. Qe7 {[%emt 0:00:45]} Qxe7 {[%emt 0:00:18]} 37. Rxe7 {
[%emt 0:00:03] Karjakin made his win a lot harder than he should have,
eventually reaching a double rook endgame up two pawns that he had to figure
out how to win, but he managed in the end.} Nd4 {[%emt 0:00:17]} 38. a4 {
[%emt 0:01:40]} Nxf3 {[%emt 0:00:49]} 39. e6 {[%emt 0:03:03]} fxe6 {[%emt 0:00:
28]} 40. Rxe6 {[%emt 0:00:00]} Nd4 {[%emt 0:00:00]} 41. Re5 {[%emt 0:03:09]}
Ne2 {[%emt 0:05:27]} 42. Rxh5 {[%emt 0:00:41]} Nxg3 {[%emt 0:00:40]} 43. fxg3 {
[%emt 0:00:07]} Re3 {[%emt 0:00:09]} 44. a5 {[%emt 0:03:32]} Rxe4 {[%emt 0:02:
45]} 45. a6 {[%emt 0:00:30]} Re7 {[%emt 0:04:12]} 46. Rb5 {[%emt 0:00:47]} Kh7
{[%emt 0:00:45]} 47. Kh3 {[%emt 0:00:41]} Ra8 {[%emt 0:00:32]} 48. Rb6 {
[%emt 0:00:23]} Raa7 {[%emt 0:00:57]} 49. Ra5 {[%emt 0:00:27]} Re3 {[%emt 0:03:
19]} 50. h5 {[%emt 0:01:30]} Rd3 {[%emt 0:01:06]} 51. Kh4 {[%emt 0:00:09]} Rd4+
{[%emt 0:01:22]} 52. g4 {[%emt 0:00:12]} Re4 {[%emt 0:00:49]} 53. Kg5 {[%emt 0:
01:37]} Rf7 {[%emt 0:00:40]} 54. Rg6 {[%emt 0:02:00]} Ra7 {[%emt 0:04:21]} 55.
Kh4 {[%emt 0:02:17]} Rb4 {[%emt 0:01:36]} 56. Rc6 {[%emt 0:00:29]} Re4 {
[%emt 0:00:16]} 57. Rb6 {[%emt 0:00:36]} Re1 {[%emt 0:02:50]} 58. Ra4 {[%emt 0:
06:03]} Re3 {[%emt 0:04:40]} 59. g5 {[%emt 0:02:39]} Ree7 {[%emt 0:01:15]} 60.
Rb8 {[%emt 0:00:00]} g6 {[%emt 0:00:00]} 61. Rb6 {[%emt 0:02:58]} gxh5 {
[%emt 0:01:37]} 62. Rab4 {[%emt 0:00:06]} Re1 {[%emt 0:02:38]} 63. Rb7+ {
[%emt 0:00:27]} Kg6 {[%emt 0:00:10]} 64. R4b6+ {[%emt 0:00:22]} 1-0

[Event "Candidates Tournament"]
[Site "Khanty-Mansiysk"]
[Date "2014.03.25"]
[Round "10"]
[White "Karjakin, Sergey"]
[Black "Andreikin, Dmitry"]
[Result "1/2-1/2"]
[ECO "B46"]
[WhiteElo "2766"]
[BlackElo "2709"]
[Annotator "ChessBase Website"]
[PlyCount "58"]
[EventDate "2014.03.13"]
[EventType "tourn"]
[EventRounds "14"]
[EventCountry "RUS"]
[EventCategory "21"]
[SourceTitle "CBM 160"]
[Source "ChessBase"]
[SourceDate "2014.05.15"]
[SourceVersion "1"]
[SourceVersionDate "2014.05.15"]
[SourceQuality "1"]
[TimeControl "40/7200:20/3600:900+30"]
[WhiteClock "0:59:26"]
[BlackClock "0:56:56"]

1. e4 {[%emt 0:00:03]} c5 {[%emt 0:00:10]} 2. Nf3 {[%emt 0:00:05]} e6 {[%emt 0:
00:07]} 3. d4 {[%emt 0:00:05]} cxd4 {[%emt 0:00:04]} 4. Nxd4 {[%emt 0:00:06]}
Nc6 {[%emt 0:00:09]} 5. Nc3 {[%emt 0:00:08]} a6 {[%emt 0:00:06] Karjakin's
approach to the Paulsen, which was basically trade all the pieces, didn't
promise him any advantage and the game quickly reached an equal endgame. It
wasn't a dead draw yet, ideas still existed for both sides, but neither tried
particularly hard.} 6. Nxc6 {[%emt 0:01:30]} bxc6 {[%emt 0:00:10]} 7. Qd3 {
[%emt 0:00:32]} Qc7 {[%emt 0:00:11]} 8. Qg3 {[%emt 0:02:13]} Qxg3 {[%emt 0:00:
11]} 9. hxg3 {[%emt 0:00:07]} d5 {[%emt 0:00:05]} 10. g4 {[%emt 0:01:47]} Rb8 {
[%emt 0:08:55]} 11. g5 {[%emt 0:02:16]} f6 {[%emt 0:01:36]} 12. gxf6 {[%emt 0:
27:48]} Nxf6 {[%emt 0:00:43]} 13. e5 $146 {[%emt 0:00:48]} (13. Bd3 Bd6 14. O-O
O-O 15. Re1 Bc5 16. exd5 cxd5 17. Na4 Bd6 18. b3 e5 19. f3 Bd7 20. Bd2 Rbc8 21.
Nb6 Bc5+ 22. Be3 Bxe3+ 23. Rxe3 Rc6 24. Nxd7 Nxd7 25. c4 d4 26. Re2 a5 27. Be4
Rc7 28. Bd5+ Kh8 29. a3 h6 30. b4 axb4 31. axb4 Nb6 32. Rxe5 {1/2-1/2 (32)
Karjakin,S (2721)-Mamedyarov,S (2725) Baku 2009}) 13... Nd7 {[%emt 0:15:07]}
14. f4 {[%emt 0:00:22]} Nc5 {[%emt 0:00:07]} 15. Rh3 {[%emt 0:23:01]} a5 {
[%emt 0:03:08]} 16. b3 {[%emt 0:08:30]} Ba6 {[%emt 0:05:51]} 17. Bxa6 {[%emt 0:
09:11]} Nxa6 {[%emt 0:00:06]} 18. Na4 {[%emt 0:00:11]} Rb4 {[%emt 0:05:39]} 19.
Bd2 {[%emt 0:07:56]} Re4+ {[%emt 0:01:21]} 20. Kf1 {[%emt 0:00:15]} Bb4 {
[%emt 0:08:27]} 21. c3 {[%emt 0:00:20]} Ba3 {[%emt 0:01:03]} 22. Re1 {[%emt 0:
00:35]} Rxe1+ {[%emt 0:00:55]} 23. Kxe1 {[%emt 0:00:08]} O-O {[%emt 0:00:22]}
24. Ke2 {[%emt 0:06:50]} h6 {[%emt 0:04:21]} 25. Rg3 {[%emt 0:02:45]} Kf7 {
[%emt 0:01:34]} 26. Rh3 {[%emt 0:00:18]} Kg6 {[%emt 0:01:26]} 27. Rg3+ {
[%emt 0:00:06]} Kf7 {[%emt 0:00:05]} 28. Rh3 {[%emt 0:01:15]} Kg6 {[%emt 0:00:
07]} 29. Rg3+ {[%emt 0:00:04]} Kf7 {[%emt 0:00:08]} 1/2-1/2

[Event "Candidates Tournament"]
[Site "Khanty-Mansiysk"]
[Date "2014.03.26"]
[Round "11"]
[White "Kramnik, Vladimir"]
[Black "Anand, Viswanathan"]
[Result "1/2-1/2"]
[ECO "E05"]
[WhiteElo "2787"]
[BlackElo "2770"]
[Annotator "Marin,M"]
[PlyCount "61"]
[EventDate "2014.03.13"]
[EventType "tourn"]
[EventRounds "14"]
[EventCountry "RUS"]
[EventCategory "21"]
[SourceTitle "CBM 160"]
[Source "ChessBase"]
[SourceDate "2014.05.15"]
[SourceVersion "1"]
[SourceVersionDate "2014.05.15"]
[SourceQuality "1"]
[TimeControl "40/7200:20/3600:900+30"]
[WhiteClock "0:59:26"]
[BlackClock "0:56:56"]

1. d4 {[%emt 0:00:03]} Nf6 {[%emt 0:00:12]} 2. c4 {[%emt 0:00:07]} e6 {[%emt 0:
00:07]} 3. Nf3 {[%emt 0:00:35]} d5 {[%emt 0:00:33]} 4. g3 {[%emt 0:01:24]} Be7
{[%emt 0:01:37]} 5. Bg2 {[%emt 0:00:20]} O-O {[%emt 0:00:14]} 6. O-O {[%emt 0:
00:09]} dxc4 {[%emt 0:00:12]} 7. Ne5 {[%emt 0:05:29]} Nc6 {[%emt 0:03:15]} 8.
Bxc6 {[%emt 0:00:06]} bxc6 {[%emt 0:00:07]} 9. Nxc6 {[%emt 0:00:04]} Qe8 {
[%emt 0:00:08]} 10. Nxe7+ {[%emt 0:00:04]} Qxe7 {[%emt 0:00:08]} 11. Na3 {
[%emt 0:00:14] This way of developing the knight to retrieve the pawn is
common in the Catalan, but mainly in positions where ...Bxa3 is possible.
Curiously, in this position, in which there is no black dark-squared bishop
anymore, it is quite rare.} (11. Qc2 {Kramnik,V (2810)-Carlsen,M (2872) London
2013 (1/2-1/2, 41)}) 11... c5 {[%emt 0:13:40] Taking into account the surprise,
Anand played relatively fast, after less than a quarter of an hour. Back
immediately gets rid of his backward pawn.} (11... Rd8 {is a logical
alternative, but it offers White chances to retain the better striucture while
more or less neutralising Black's play on the light squares.} 12. Qc2 Ba6 (
12... Rxd4 13. Be3 Rd5 14. Nxc4 {[%cal Gf2f3,Gb2b3]}) 13. Nxc4 Rxd4 14. Ne5 Rd5
(14... Bb7 15. Nc6 Bxc6 16. Qxc6 $14) 15. Qc6 Rad8 16. Qxa6 $14) 12. dxc5 {
[%emt 0:01:50]} Qxc5 {[%emt 0:02:02]} 13. Be3 {[%emt 0:00:07]} Qh5 {[%emt 0:16:
39] Played after 16 minutes. Black had a relatively wide choice, indeed.} (
13... Qc7 14. Rc1 Ba6 15. Qa4 Qb7 16. Nxc4 Bxc4 17. Qxc4 Qxb2 18. Bd4 $14) (
13... Qc6 14. Rc1 Ba6 15. Nxc4 Bxc4 16. b3 Bxb3 17. Rxc6 Bxd1 18. Rxd1 $14) (
13... Qb4 $5 {Omelka,R (2115)-Dobes,V (2061) Czechia 2011 (1/2-1/2, 40)}) 14.
f3 {[%emt 0:01:34]} (14. Nxc4 Ba6 15. b3 Ng4 16. h4 Nxe3 17. fxe3 Rad8 18. Qc2
Bb7 $36) 14... c3 $1 {[%emt 0:05:48][%csl Ra3] The point of the previous move.
It is not really unusual for Black to have a pawn less in the 7.Ne5 variation.
Due to the somewhat awkward position of the a3-knight and the vulnerable
c-pawn, Black has good chances of maintaining aproximate equality by dynamic
means. Compare also with c5-c6 from Karjakin-Anand.} 15. bxc3 {[%emt 0:02:57]}
Qa5 {[%emt 0:01:50]} 16. Qc1 {[%emt 0:12:21]} Ba6 {[%emt 0:02:37][%csl Rc3]
[%cal Ga8c8]} 17. c4 {[%emt 0:03:12]} Rac8 {[%emt 0:03:12] (!!) Choosing the
right rook for a certain file is one of the most difficult issues in chess.
Anand rightly decides that he will need the other rook on the d-file. And
remarkably, he used only 3 minutes on his last move, although it leaves the
a7-pawn undefended!} (17... Rfc8 {would offer White chances to keep his extra
pawn and a relatively active position.} 18. Rd1 Nd5 19. Rd4 Rc6 20. Kg2 Rac8
21. Bd2 Qb6 22. Rh4 $14) 18. Bxa7 $11 {[%emt 0:26:34] After nearly half an
hour, Kramnik decides to liquidate into a draw.} ({After} 18. Rd1 Nd5 19. Rd4 {
the difference is revealed by} Rfd8 $1 {The latent pressure on the d-file
restricts White's active possibilities.} 20. Bf2 (20. Kg2 $4 Nxe3+ 21. Qxe3
Rxd4 22. Qxd4 Qxa3 $19) (20. Rd3 $5 Nxe3 21. Rxd8+ Rxd8 22. Qxe3 Rd2) 20... h6
$5 {Just a useful waiting move. For instance,} 21. Kg2 {would expose the king
slightly, adding effect to} e5 {(again, this would not be possible without a
rook on d8).} 22. Rd3 e4 $132) 18... Bxc4 {[%emt 0:02:55]} 19. Nxc4 {[%emt 0:
00:18]} Qxa7+ {[%emt 0:00:10]} 20. Qe3 {[%emt 0:00:06]} Qa6 {[%emt 0:00:45]}
21. Ne5 {[%emt 0:08:06] Two rounds later, in the aforementioned game with
Karjakin, Anand once again got a position in which White's extra a2-pawn was
not too relevant. Only that here it will liquidate rather soon into a 0.00
position.} Rc2 {[%emt 0:00:50][%csl Gc2]} 22. Nd3 {[%emt 0:07:32]} Nd5 {
[%emt 0:02:06]} 23. Qf2 {[%emt 0:04:01]} Rxa2 {[%emt 0:07:37]} 24. Rxa2 {
[%emt 0:00:09]} Qxa2 {[%emt 0:00:07]} 25. e4 {[%emt 0:00:11]} Qa3 {[%emt 0:00:
26]} 26. exd5 {[%emt 0:00:16]} Qxd3 {[%emt 0:00:08]} 27. dxe6 {[%emt 0:00:18]}
fxe6 {[%emt 0:00:06]} 28. Qe1 {[%emt 0:00:41]} Qd5 {[%emt 0:00:17]} 29. Qe3 {
[%emt 0:00:19]} h6 {[%emt 0:00:10]} 30. Re1 {[%emt 0:00:06]} Rxf3 {[%emt 0:00:
07]} 31. Qxe6+ {[%emt 0:00:03]} 1/2-1/2